fUSD/lending_fUSD_20260507
["ID","MTS","AMOUNT","RATE_DAILY","PERIOD"]
[421768040,1778123519000,-171.54413258,0.00013466,2]
[421768041,1778123519000,-1337.3,0.00013496,2]
[421768042,1778123519000,-2883.38078597,0.0001353,2]
[421768068,1778123519000,-500.0,0.00013698,2]
[421768061,1778123519000,-500.0,0.00013698,2]
[421768073,1778123519000,-500.0,0.00013698,2]
[421768106,1778123519000,-200.0,0.00013805,2]
[421768105,1778123519000,-159.01319722,0.00013722,2]
[421768107,1778123519000,-1337.3,0.0001381,2]
[421768108,1778123519000,-166.66,0.00013836,2]
[421768113,1778123519000,-150.0,0.00013986,2]
[421768112,1778123519000,-150.0,0.00013986,2]
[421768109,1778123519000,-2883.38078597,0.00013888,2]
[421768111,1778123519000,-166.66,0.00013973,2]
[421768110,1778123519000,-200.0,0.00013943,2]
[421768115,1778123519000,-1633.92269601,0.0001408,2]
[421768116,1778123519000,-200.0,0.00014082,2]
[421768117,1778123519000,-166.66,0.0001411,2]
[421768114,1778123519000,-250.0,0.00014,2]
[421768120,1778123519000,-3292.0,0.00014239,2]
[421768125,1778123519000,-170.43,0.00014662,2]
[421768119,1778123519000,-170.43,0.00014143,2]
[421768118,1778123519000,-517.0,0.00014121,2]
[421768121,1778123519000,-2883.38078597,0.00014246,2]
[421768122,1778123519000,-166.66,0.00014247,2]
[421768124,1778123519000,-2883.38078597,0.00014604,2]
[421768126,1778123519000,-501.03097108,0.00014786,2]
[421768129,1778123519000,-65863.26071886,0.00015,2]
[421768128,1778123519000,-2883.38078597,0.00014963,2]
[421768130,1778123519000,-900.0,0.00015068,2]
[421768127,1778123519000,-157.99,0.00014891,2]
[421768079,1778123519000,-500.0,0.00013698,2]
[421768123,1778123519000,-166.66,0.00014384,2]
[421768103,1778123519000,-500.0,0.00013722,2]
[421768131,1778123519000,-2000.0,0.00015115,2]
[421768099,1778123519000,-500.0,0.00013722,2]
[421768078,1778123519000,-500.0,0.00013698,2]
[421768104,1778123519000,-588.53192234,0.00013722,2]
[421768074,1778123519000,-500.0,0.00013698,2]
[421768091,1778123519000,-166.66,0.00013699,2]
[421768081,1778123519000,-500.0,0.00013698,2]
[421768080,1778123519000,-500.0,0.00013698,2]
[421768082,1778123519000,-500.0,0.00013698,2]
[421768132,1778123519000,-11046.55,0.0001531,2]
[421768084,1778123519000,-500.0,0.00013698,2]
[421768086,1778123519000,-500.0,0.00013698,2]
[421768083,1778123519000,-500.0,0.00013698,2]
[421768085,1778123519000,-500.0,0.00013698,2]
[421768090,1778123519000,-200.0,0.00013699,2]
[421768077,1778123519000,-500.0,0.00013698,2]
[421768089,1778123519000,-499.57167174,0.00013698,2]
[421768087,1778123519000,-508.37034909,0.00013698,2]
[421768092,1778123519000,-500.0,0.00013722,2]
[421768095,1778123519000,-501.76596491,0.00013722,2]
[421768096,1778123519000,-500.0,0.00013722,2]
[421768093,1778123519000,-500.0,0.00013722,2]
[421768097,1778123519000,-500.0,0.00013722,2]
[421768094,1778123519000,-500.0,0.00013722,2]
[421768098,1778123519000,-500.0,0.00013722,2]
[421768100,1778123519000,-500.0,0.00013722,2]
[421768101,1778123519000,-171.08153628,0.00013722,2]
[421768102,1778123519000,-500.0,0.00013722,2]
[421768088,1778123519000,-500.0,0.00013698,2]
[421768168,1778123520000,-500.0,0.00016438,2]
[421768165,1778123520000,-500.0,0.00016438,2]
[421768167,1778123520000,-500.19971275,0.00016438,2]
[421768172,1778123520000,-157.99,0.00016545,2]
[421768169,1778123520000,-500.0,0.00016438,2]
[421768164,1778123520000,-500.0,0.00016438,2]
[421768163,1778123520000,-195.96062501,0.00016438,2]
[421768161,1778123520000,-500.0,0.00016438,2]
[421768170,1778123520000,-4439.4895439,0.000165,2]
[421768166,1778123520000,-500.35777432,0.00016438,2]
[421768176,1778123520000,-175.98961266,0.00016986,2]
[421768174,1778123520000,-2000.0,0.00016626,2]
[421768179,1778123520000,-744.38615088,0.00016986,2]
[421768175,1778123520000,-187.52,0.00016712,2]
[421768173,1778123520000,-169.76,0.00016565,2]
[421768177,1778123520000,-508.54186299,0.00016986,2]
[421768181,1778123520000,-502.04883077,0.00016986,2]
[421768178,1778123520000,-1005.73709075,0.00016986,2]
[421768183,1778123520000,-1005.58876863,0.00016986,2]
[421768180,1778123520000,-503.80512866,0.00016986,2]
[421768182,1778123520000,-504.73489469,0.00016986,2]
[421768159,1778123520000,-501.41004535,0.00016438,2]
[421768184,1778123520000,-1001.21068364,0.00016986,2]
[421768171,1778123520000,-13038.96565798,0.000165,2]
[421768158,1778123520000,-500.0,0.00016438,2]
[421768146,1778123520000,-501.47026417,0.00016438,2]
[421768155,1778123520000,-500.0,0.00016438,2]
[421768186,1778123520000,-1136.51073093,0.00016986,2]
[421768137,1778123520000,-395.51022397,0.0001596,2]
[421768136,1778123520000,-175518.03811333,0.00015752,2]
[421768135,1778123520000,-2883.38078597,0.00015679,2]
[421768133,1778123520000,-2883.38078597,0.00015321,2]
[421768134,1778123520000,-4609.0,0.00015663,2]
[421768138,1778123520000,-300.0,0.00016,2]
[421768148,1778123520000,-339.23784331,0.00016438,2]
[421768140,1778123520000,-8158.28,0.00016116,2]
[421768139,1778123520000,-3074.49745027,0.00016017,2]
[421768147,1778123520000,-529.69266044,0.00016438,2]
[421768157,1778123520000,-500.0,0.00016438,2]
[421768144,1778123520000,-150.0,0.00016438,2]
[421768141,1778123520000,-838.0,0.00016438,2]
[421768143,1778123520000,-501.44919593,0.00016438,2]
[421768142,1778123520000,-900.0,0.00016438,2]
[421768150,1778123520000,-501.19146193,0.00016438,2]
[421768149,1778123520000,-500.0,0.00016438,2]
[421768160,1778123520000,-565.7993702,0.00016438,2]
[421768152,1778123520000,-186.53575633,0.00016438,2]
[421768151,1778123520000,-501.97983143,0.00016438,2]
[421768156,1778123520000,-500.0,0.00016438,2]
[421768153,1778123520000,-501.26582243,0.00016438,2]
[421768154,1778123520000,-501.55567996,0.00016438,2]
[421768145,1778123520000,-500.0,0.00016438,2]
[421768192,1778123520000,-425.99,0.000176,2]
[421768162,1778123520000,-500.37628274,0.00016438,2]
[421768187,1778123520000,-1002.39746425,0.00016986,2]
[421768218,1778123520000,-500.0,0.00019178,2]
[421768222,1778123520000,-500.0,0.00019178,2]
[421768219,1778123520000,-500.0,0.00019178,2]
[421768221,1778123520000,-500.0,0.00019178,2]
[421768220,1778123520000,-500.0,0.00019178,2]
[421768217,1778123520000,-200.0,0.00019025,2]
[421768223,1778123520000,-500.0,0.00019178,2]
[421768225,1778123520000,-500.0,0.00019178,2]
[421768224,1778123520000,-500.0,0.00019178,2]
[421768226,1778123520000,-500.0,0.00019178,2]
[421768228,1778123520000,-500.0,0.00019178,2]
[421768216,1778123520000,-257.78823754,0.00019025,2]
[421768230,1778123520000,-500.0,0.00019178,2]
[421768231,1778123520000,-500.0,0.00019178,2]
[421768233,1778123520000,-450.51477892,0.00019178,2]
[421768235,1778123520000,-157.99,0.00019854,2]
[421768232,1778123520000,-500.0,0.00019178,2]
[421768234,1778123520000,-2240.47,0.00019178,2]
[421768236,1778123520000,-4987.2186905,0.000199,3]
[421768237,1778123520000,-277051.39518519,0.0001995,15]
[421768239,1778123520000,-151.0,0.0001995,2]
[421768240,1778123520000,-151.0,0.0001995,2]
[421768238,1778123520000,-151.0,0.0001995,2]
[421768189,1778123520000,-6453.0,0.00017229,2]
[421768227,1778123520000,-500.0,0.00019178,2]
[421768214,1778123520000,-39814.0733141,0.00019,2]
[421768229,1778123520000,-500.0,0.00019178,2]
[421768212,1778123520000,-34869.776578,0.000188,2]
[421768215,1778123520000,-3979.53024941,0.00019,2]
[421768188,1778123520000,-475679.33639273,0.00017,2]
[421768191,1778123520000,-1984.37,0.000176,2]
[421768190,1778123520000,-213.77,0.000176,2]
[421768185,1778123520000,-1010.77497534,0.00016986,2]
[421768193,1778123520000,-207.9261601,0.00017785,2]
[421768197,1778123520000,-456.77775071,0.00018,2]
[421768195,1778123520000,-160.0,0.00017785,2]
[421768196,1778123520000,-615.38624199,0.0001779,2]
[421768200,1778123520000,-157.99,0.000182,2]
[421768198,1778123520000,-350.0,0.00018,2]
[421768202,1778123520000,-243.66228116,0.00018284,2]
[421768194,1778123520000,-214.63993676,0.00017785,2]
[421768203,1778123520000,-89415.24,0.00018356,2]
[421768213,1778123520000,-5522.0,0.00018952,2]
[421768210,1778123520000,-157.37659745,0.00018518,2]
[421768201,1778123520000,-456.77775071,0.000182,2]
[421768211,1778123520000,-456.77775071,0.000187,2]
[421768209,1778123520000,-456.77775071,0.000185,2]
[421768207,1778123520000,-150.0,0.0001845,2]
[421768208,1778123520000,-150.0,0.00018452,2]
[421768206,1778123520000,-150.0,0.0001845,2]
[421768205,1778123520000,-838.0,0.0001841,2]
[421768204,1778123520000,-456.77775071,0.000184,2]
[421768199,1778123520000,-2000.0,0.00018138,2]
[421768268,1778123521000,-838.0,0.00020381,2]
[421768261,1778123521000,-400.0,0.0002,2]
[421768267,1778123521000,-161.0,0.0002,2]
[421768259,1778123521000,-294.0,0.0002,2]
[421768260,1778123521000,-217.0,0.0002,2]
[421768269,1778123521000,-2758.87,0.00020548,2]
[421768262,1778123521000,-858.0,0.0002,2]
[421768263,1778123521000,-1487.69636694,0.0002,5]
[421768265,1778123521000,-7000.00619753,0.0002,2]
[421768266,1778123521000,-158.0,0.0002,13]
[421768270,1778123521000,-157.37659745,0.00020929,2]
[421768257,1778123521000,-3074.49745027,0.00019952,2]
[421768271,1778123521000,-294.0,0.00021,2]
[421768264,1778123521000,-226.0,0.0002,2]
[421768258,1778123521000,-984.0,0.0002,2]
[421768244,1778123521000,-467.607674,0.0001995,2]
[421768251,1778123521000,-292.670415,0.0001995,2]
[421768275,1778123521000,-161.0,0.00021,2]
[421768242,1778123521000,-507.858466,0.0001995,2]
[421768241,1778123521000,-507.858466,0.0001995,2]
[421768245,1778123521000,-507.858466,0.0001995,2]
[421768243,1778123521000,-507.858466,0.0001995,2]
[421768246,1778123521000,-467.607674,0.0001995,2]
[421768256,1778123521000,-696.249343,0.0001995,2]
[421768248,1778123521000,-467.607674,0.0001995,2]
[421768247,1778123521000,-467.607674,0.0001995,2]
[421768254,1778123521000,-696.249343,0.0001995,2]
[421768253,1778123521000,-696.249343,0.0001995,2]
[421768255,1778123521000,-696.249343,0.0001995,2]
[421768250,1778123521000,-292.670415,0.0001995,2]
[421768252,1778123521000,-292.670415,0.0001995,2]
[421768249,1778123521000,-292.670415,0.0001995,2]
[421768273,1778123521000,-858.0,0.00021,2]
[421768284,1778123521000,-184.615,0.00021918,2]
[421768272,1778123521000,-217.0,0.00021,2]
[421768274,1778123521000,-226.0,0.00021,2]
[421768307,1778123521000,-496.19290314,0.00023,2]
[421768305,1778123521000,-8147.23437027,0.00023,2]
[421768306,1778123521000,-380.52932165,0.00023,2]
[421768304,1778123521000,-150.0,0.00011999,2]
[421768303,1778123521000,-12843.50122645,0.00023,2]
[421768298,1778123521000,-2708.06767253,0.00023,2]
[421768300,1778123521000,-1229.43071752,0.0001448,2]
[421768301,1778123521000,-2040.79797912,0.00023,2]
[421768299,1778123521000,-404.49197849,0.0001448,2]
[421768296,1778123521000,-217.0,0.00023,2]
[421768297,1778123521000,-858.0,0.00023,2]
[421768294,1778123521000,-838.0,0.00022353,2]
[421768302,1778123521000,-226.0,0.00023,2]
[421768293,1778123521000,-615.38624199,0.00022212,2]
[421768295,1778123521000,-294.0,0.00023,2]
[421768292,1778123521000,-200.0,0.0002206,2]
[421768276,1778123521000,-162.61700183,0.0002101,2]
[421768291,1778123521000,-161.0,0.00022,2]
[421768277,1778123521000,-258.99037695,0.0002101,2]
[421768283,1778123521000,-1172.25,0.00021918,5]
[421768278,1778123521000,-501.66572695,0.0002101,2]
[421768280,1778123521000,-268.01,0.000214,7]
[421768281,1778123521000,-5000.0,0.00021918,2]
[421768279,1778123521000,-15750.5,0.00021273,2]
[421768282,1778123521000,-1002.79,0.00021918,2]
[421768289,1778123521000,-226.0,0.00022,2]
[421768290,1778123521000,-106059.64931784,0.00022,4]
[421768288,1778123521000,-858.0,0.00022,2]
[421768285,1778123521000,-294.0,0.00022,2]
[421768286,1778123521000,-217.0,0.00022,2]
[421768287,1778123521000,-450.0,0.00022,2]
[421768338,1778123522000,-232.48052943,0.00025,2]
[421768334,1778123522000,-786.94563637,0.00025,60]
[421768333,1778123522000,-209.90641887,0.00025,2]
[421768335,1778123522000,-1805.66331176,0.00025,2]
[421768332,1778123522000,-1126.89953138,0.00025,2]
[421768337,1778123522000,-540.0,0.00025,2]
[421768331,1778123522000,-231.48117401,0.00025,2]
[421768336,1778123522000,-867.61764916,0.00025,2]
[421768344,1778123522000,-182.04,0.00025234,30]
[421768341,1778123522000,-624.85380337,0.00025,5]
[421768340,1778123522000,-3078.65225433,0.00025,2]
[421768342,1778123522000,-175.0,0.00025,2]
[421768343,1778123522000,-254.65712492,0.00025205,2]
[421768345,1778123522000,-182.04,0.00025523,2]
[421768346,1778123522000,-2343.17,0.00025786,2]
[421768347,1778123522000,-1562.15,0.00025786,2]
[421768330,1778123522000,-294.04682161,0.00025,2]
[421768339,1778123522000,-617.87476287,0.00025,2]
[421768328,1778123522000,-182.04,0.00024658,2]
[421768313,1778123522000,-262344.32847506,0.00023,2]
[421768329,1778123522000,-182.04,0.00024946,7]
[421768351,1778123522000,-929.0,0.00025854,2]
[421768309,1778123522000,-2606.6431656,0.00023,2]
[421768310,1778123522000,-618.6790189,0.00023,2]
[421768311,1778123522000,-1000.0,0.00023,2]
[421768320,1778123522000,-858.0,0.00024,2]
[421768316,1778123522000,-3074.49745027,0.00023888,2]
[421768314,1778123522000,-161.0,0.00023,2]
[421768312,1778123522000,-14619.42564278,0.00023,2]
[421768326,1778123522000,-327.37,0.00024658,2]
[421768315,1778123522000,-157.37659747,0.0002334,2]
[421768321,1778123522000,-226.0,0.00024,2]
[421768318,1778123522000,-217.0,0.00024,2]
[421768319,1778123522000,-500.0,0.00024,2]
[421768322,1778123522000,-1252.31853848,0.00024,2]
[421768324,1778123522000,-838.0,0.00024324,2]
[421768323,1778123522000,-161.0,0.00024,2]
[421768327,1778123522000,-1000.0,0.00024658,2]
[421768325,1778123522000,-150.0,0.00024658,2]
[421768317,1778123522000,-294.0,0.00024,2]
[421768352,1778123522000,-31174.5580646,0.0002589,5]
[421768308,1778123522000,-2041.44350403,0.00023,2]
[421768348,1778123522000,-15750.5,0.00025786,2]
[421768373,1778123522000,-1016.15,0.00027397,2]
[421768374,1778123522000,-1000.0,0.00027397,20]
[421768376,1778123522000,-327.37,0.00027397,2]
[421768377,1778123522000,-537.692838,0.00027397,2]
[421768378,1778123522000,-537.692838,0.00027397,2]
[421768380,1778123522000,-537.692838,0.00027397,2]
[421768379,1778123522000,-537.692838,0.00027397,2]
[421768382,1778123522000,-1972.48,0.00027397,10]
[421768375,1778123522000,-300.0,0.00027397,2]
[421768381,1778123522000,-151.0,0.00027397,2]
[421768385,1778123522000,-150.0,0.00027397,5]
[421768389,1778123522000,-3061.9135098,0.00027456,2]
[421768388,1778123522000,-54092.61,0.000274,7]
[421768383,1778123522000,-1643.74,0.00027397,10]
[421768386,1778123522000,-1250.68,0.000274,7]
[421768384,1778123522000,-500.0,0.00027397,5]
[421768391,1778123522000,-6327.4805459,0.00027456,2]
[421768349,1778123522000,-1273.608,0.00025787,2]
[421768387,1778123522000,-160.0,0.000274,7]
[421768371,1778123522000,-151.0,0.00027397,2]
[421768390,1778123522000,-42406.3164152,0.00027456,2]
[421768370,1778123522000,-184.61,0.00027397,30]
[421768372,1778123522000,-1500.0,0.00027397,2]
[421768350,1778123522000,-182.04,0.00025811,7]
[421768355,1778123522000,-4574.61256297,0.00026,2]
[421768354,1778123522000,-607.72626278,0.0002599,2]
[421768357,1778123522000,-218.94628932,0.00026,2]
[421768356,1778123522000,-550.0,0.00026,2]
[421768361,1778123522000,-615.38624199,0.00026634,2]
[421768363,1778123522000,-182.04,0.00026964,30]
[421768359,1778123522000,-838.0,0.00026296,2]
[421768353,1778123522000,-8204.55440281,0.00025919,2]
[421768362,1778123522000,-182.04,0.00026676,7]
[421768358,1778123522000,-182.04,0.00026099,30]
[421768365,1778123522000,-502.0,0.00027137,2]
[421768364,1778123522000,-1692.612679,0.00027,2]
[421768369,1778123522000,-184.61,0.00027397,2]
[421768366,1778123522000,-182.04,0.00027253,2]
[421768368,1778123522000,-225.85034537,0.000273,30]
[421768360,1778123522000,-182.04,0.00026388,2]
[421768367,1778123522000,-225.85034538,0.000273,30]
[421768413,1778123523000,-214.63993676,0.00028,10]
[421768412,1778123523000,-214.63993676,0.00028,7]
[421768411,1778123523000,-468.0,0.00027955,2]
[421768418,1778123523000,-350.0,0.00028493,5]
[421768417,1778123523000,-182.04,0.00028406,7]
[421768416,1778123523000,-838.0,0.00028267,2]
[421768414,1778123523000,-600.0,0.00028,2]
[421768424,1778123523000,-150.0,0.00028508,2]
[421768422,1778123523000,-174.093,0.00028508,2]
[421768419,1778123523000,-200.0,0.00028508,2]
[421768425,1778123523000,-150.151,0.00028508,2]
[421768423,1778123523000,-150.127,0.00028508,2]
[421768421,1778123523000,-150.0,0.00028508,2]
[421768427,1778123523000,-599.785,0.00028508,2]
[421768409,1778123523000,-500.0,0.00027955,2]
[421768426,1778123523000,-150.0,0.00028508,2]
[421768420,1778123523000,-275.0,0.00028508,2]
[421768410,1778123523000,-500.0,0.00027955,2]
[421768401,1778123523000,-250.0,0.00027945,5]
[421768403,1778123523000,-500.0,0.00027955,2]
[421768428,1778123523000,-3537.0,0.00028508,2]
[421768392,1778123523000,-151.0,0.00027456,7]
[421768393,1778123523000,-151.0,0.00027456,7]
[421768398,1778123523000,-3074.49745027,0.00027823,2]
[421768399,1778123523000,-182.04,0.0002783,30]
[421768394,1778123523000,-151.0,0.00027456,7]
[421768395,1778123523000,-182.04,0.00027541,7]
[421768415,1778123523000,-182.04,0.00028118,2]
[421768396,1778123523000,-152.0,0.00027649,3]
[421768402,1778123523000,-500.0,0.00027955,2]
[421768406,1778123523000,-500.0,0.00027955,2]
[421768407,1778123523000,-500.0,0.00027955,2]
[421768405,1778123523000,-500.0,0.00027955,2]
[421768400,1778123523000,-502.0,0.00027938,2]
[421768408,1778123523000,-500.0,0.00027955,2]
[421768404,1778123523000,-500.0,0.00027955,2]
[421768397,1778123523000,-500.0,0.000278,7]
[421768432,1778123523000,-606.72,0.00028661,7]
[421768431,1778123523000,-606.72,0.0002863,2]
[421768433,1778123523000,-606.72,0.00028693,30]
[421768455,1778123523000,-2203.14183133,0.00029,4]
[421768456,1778123523000,-606.72,0.0002901,2]
[421768458,1778123523000,-157.15662956,0.00029041,5]
[421768454,1778123523000,-151.7,0.00028991,2]
[421768461,1778123523000,-606.72,0.00029074,30]
[421768457,1778123523000,-151.7,0.00029031,7]
[421768460,1778123523000,-151.7,0.00029072,30]
[421768459,1778123523000,-606.72,0.00029042,7]
[421768462,1778123523000,-1250.68,0.000291,7]
[421768463,1778123523000,-606.72,0.00029105,2]
[421768467,1778123523000,-151.7,0.00029152,7]
[421768468,1778123523000,-606.72,0.00029169,30]
[421768466,1778123523000,-606.72,0.00029137,7]
[421768465,1778123523000,-200.0,0.0002913,7]
[421768464,1778123523000,-151.7,0.00029112,2]
[421768469,1778123523000,-151.7,0.00029192,30]
[421768434,1778123523000,-182.04,0.00028695,30]
[421768452,1778123523000,-606.72,0.00028979,30]
[421768449,1778123523000,-606.72,0.00028915,2]
[421768453,1778123523000,-182.04,0.00028983,2]
[421768450,1778123523000,-606.72,0.00028947,7]
[421768451,1778123523000,-151.7,0.00028951,30]
[421768429,1778123523000,-925.0,0.00028508,2]
[421768430,1778123523000,-54092.61,0.000286,7]
[421768435,1778123523000,-606.72,0.00028725,2]
[421768437,1778123523000,-606.72,0.00028756,7]
[421768441,1778123523000,-151.7,0.0002883,30]
[421768436,1778123523000,-502.0,0.00028739,3]
[421768439,1778123523000,-606.72,0.00028788,30]
[421768438,1778123523000,-1000.0,0.00028767,5]
[421768440,1778123523000,-606.72,0.0002882,2]
[421768442,1778123523000,-606.72,0.00028852,7]
[421768445,1778123523000,-226.0,0.00028872,2]
[421768443,1778123523000,-612.618,0.00028854,2]
[421768446,1778123523000,-156.0,0.00028872,2]
[421768444,1778123523000,-151.7,0.00028871,2]
[421768447,1778123523000,-606.72,0.00028883,30]
[421768448,1778123523000,-151.7,0.00028911,7]
[421768499,1778123524000,-166.78,0.00030137,2]
[421768501,1778123524000,-443.76885576,0.00030137,2]
[421768497,1778123524000,-327.37,0.00030137,2]
[421768502,1778123524000,-838.0,0.00030239,2]
[421768494,1778123524000,-252.0,0.00030136,30]
[421768495,1778123524000,-182.14,0.00030136,7]
[421768492,1778123524000,-1279.54,0.000301,30]
[421768500,1778123524000,-401.97405522,0.00030137,120]
[421768498,1778123524000,-1139.03134317,0.00030137,5]
[421768503,1778123524000,-502.0,0.00030341,5]
[421768513,1778123524000,-294.0,0.00031273,30]
[421768507,1778123524000,-152.0,0.00030784,5]
[421768508,1778123524000,-54092.61,0.000308,7]
[421768506,1778123524000,-1411.8517475,0.00030534,2]
[421768511,1778123524000,-1250.68,0.000311,7]
[421768512,1778123524000,-502.0,0.00031142,6]
[421768509,1778123524000,-150.0,0.00031011,2]
[421768510,1778123524000,-615.38624199,0.00031056,2]
[421768504,1778123524000,-683.2052518,0.00030534,2]
[421768496,1778123524000,-15884.01306074,0.00030137,7]
[421768505,1778123524000,-9462.128173,0.00030534,2]
[421768493,1778123524000,-87829.0,0.0003013,2]
[421768474,1778123524000,-200.0,0.0002933,7]
[421768488,1778123524000,-150.0,0.00030006,2]
[421768515,1778123524000,-217.0,0.00031285,30]
[421768470,1778123524000,-606.72,0.00029201,2]
[421768475,1778123524000,-54092.61,0.000295,7]
[421768472,1778123524000,-151.76,0.00029232,2]
[421768473,1778123524000,-182.04,0.00029271,7]
[421768471,1778123524000,-152.0,0.00029216,4]
[421768477,1778123524000,-150.0,0.00029534,2]
[421768479,1778123524000,-182.04,0.0002956,30]
[421768481,1778123524000,-858.0,0.0002978,10]
[421768483,1778123524000,-23076.99709854,0.000299,2]
[421768482,1778123524000,-182.04,0.00029848,2]
[421768480,1778123524000,-202.80725,0.0002973,20]
[421768478,1778123524000,-502.0,0.0002954,4]
[421768484,1778123524000,-200.0,0.00029904,2]
[421768487,1778123524000,-76305.75024765,0.0003,2]
[421768490,1778123524000,-150.0,0.00030006,2]
[421768486,1778123524000,-650.0,0.0003,2]
[421768491,1778123524000,-228.0,0.00030006,2]
[421768485,1778123524000,-1781.0,0.00029923,5]
[421768489,1778123524000,-150.0,0.00030006,2]
[421768476,1778123524000,-200.0,0.0002953,20]
[421768514,1778123524000,-155.0,0.00031273,30]
[421768547,1778123524000,-163.95555127,0.00032,120]
[421768518,1778123524000,-226.0,0.00031285,30]
[421768543,1778123524000,-259.03663455,0.00032,120]
[421768544,1778123524000,-188.80465501,0.00032,120]
[421768546,1778123524000,-1713.2235571,0.00032,120]
[421768548,1778123524000,-198.59099089,0.00032,120]
[421768552,1778123524000,-214.63993676,0.00032,30]
[421768551,1778123524000,-160.0,0.00032,30]
[421768545,1778123524000,-301.96192583,0.00032,120]
[421768549,1778123524000,-1006.34383222,0.00032,120]
[421768553,1778123524000,-54092.61,0.000321,7]
[421768540,1778123524000,-218.42835127,0.000319,2]
[421768556,1778123524000,-294.0,0.00032273,30]
[421768557,1778123524000,-155.0,0.00032273,30]
[421768558,1778123524000,-217.0,0.00032285,30]
[421768555,1778123524000,-852.0,0.0003224,2]
[421768561,1778123524000,-226.0,0.00032285,30]
[421768559,1778123524000,-159.0,0.00032285,30]
[421768563,1778123524000,-906.84422272,0.000323,2]
[421768562,1778123524000,-161.0,0.00032285,30]
[421768516,1778123524000,-159.0,0.00031285,30]
[421768560,1778123524000,-858.0,0.00032285,30]
[421768554,1778123524000,-838.0,0.0003221,5]
[421768541,1778123524000,-502.0,0.00031943,7]
[421768550,1778123524000,-212.862241,0.00032,120]
[421768538,1778123524000,-218.42835129,0.000319,2]
[421768519,1778123524000,-161.0,0.00031285,30]
[421768539,1778123524000,-218.42835127,0.000319,2]
[421768520,1778123524000,-150.0,0.00031398,2]
[421768522,1778123524000,-150.0,0.00031398,2]
[421768521,1778123524000,-150.0,0.00031398,2]
[421768523,1778123524000,-150.0,0.00031398,2]
[421768525,1778123524000,-150.0,0.00031398,2]
[421768526,1778123524000,-150.0,0.00031398,2]
[421768529,1778123524000,-2000.0,0.00031507,30]
[421768530,1778123524000,-2000.0,0.00031507,30]
[421768528,1778123524000,-1000.0,0.000315,7]
[421768524,1778123524000,-150.0,0.00031398,2]
[421768527,1778123524000,-192.0,0.00031398,2]
[421768537,1778123524000,-3074.49745027,0.00031759,2]
[421768536,1778123524000,-925.0,0.00031508,2]
[421768542,1778123524000,-1878.16925012,0.00032,120]
[421768533,1778123524000,-150.0,0.00031508,2]
[421768535,1778123524000,-3537.0,0.00031508,2]
[421768532,1778123524000,-150.0,0.00031508,2]
[421768531,1778123524000,-150.0,0.00031508,2]
[421768534,1778123524000,-150.0,0.00031508,2]
[421768517,1778123524000,-858.0,0.00031285,30]
[421768604,1778123525000,-858.0,0.00033285,30]
[421768594,1778123525000,-207.9261601,0.00033,120]
[421768589,1778123525000,-160.0,0.00033,120]
[421768593,1778123525000,-42998.50209559,0.00033,2]
[421768595,1778123525000,-294.0,0.00033273,30]
[421768596,1778123525000,-155.0,0.00033273,30]